lending/lending_fUSD_20260411
["ID","MTS","AMOUNT","RATE_DAILY","PERIOD"]
[420282546,1775908232000,-273.0,8.59e-05,2]
[420282547,1775908232026,-250.0,8.591e-05,2]
[420282548,1775908232042,-500.21410666,8.591e-05,2]
[420282549,1775908232056,-500.21410666,8.591e-05,2]
[420282550,1775908232080,-500.21410666,8.591e-05,2]
[420282551,1775908232091,-500.21410666,8.591e-05,2]
[420282552,1775908232112,-500.21410666,8.591e-05,2]
[420282553,1775908232126,-500.21410666,8.591e-05,2]
[420282554,1775908232141,-500.21410666,8.591e-05,2]
[420282555,1775908232167,-500.21410666,8.591e-05,2]
[420282556,1775908232196,-500.21410666,8.591e-05,2]
[420282557,1775908232210,-500.21410666,8.591e-05,2]
[420282558,1775908232223,-500.21410666,8.591e-05,2]
[420282559,1775908232245,-500.21410666,8.591e-05,2]
[420282561,1775908232258,-500.21410666,8.591e-05,2]
[420282563,1775908232278,-500.21410666,8.591e-05,2]
[420282564,1775908232294,-500.21410666,8.591e-05,2]
[420282565,1775908232311,-500.21410666,8.591e-05,2]
[420282566,1775908232334,-500.21410666,8.591e-05,2]
[420282567,1775908232356,-500.21410666,8.591e-05,2]
[420282568,1775908232381,-500.21410666,8.591e-05,2]
[420282569,1775908232391,-500.21410666,8.591e-05,2]
[420282570,1775908232409,-500.21410666,8.591e-05,2]
[420282571,1775908232432,-500.21410666,8.591e-05,2]
[420282572,1775908232445,-500.21410666,8.591e-05,2]
[420282573,1775908232464,-500.21410666,8.591e-05,2]
[420282574,1775908232473,-500.21410666,8.591e-05,2]
[420282575,1775908232484,-500.21410666,8.591e-05,2]
[420282576,1775908232493,-500.21410666,8.591e-05,2]
[420282577,1775908232511,-500.21410666,8.591e-05,2]
[420282578,1775908232521,-500.21410666,8.591e-05,2]
[420282579,1775908232533,-500.21410666,8.591e-05,2]
[420282580,1775908232548,-2177.18283632,8.591e-05,2]
[420282581,1775908232570,-2177.18283632,8.591e-05,2]
[420282582,1775908232580,-2177.18283632,8.591e-05,2]
[420282583,1775908232594,-2177.18283632,8.591e-05,2]
[420282584,1775908232610,-2177.18283632,8.591e-05,2]
[420282585,1775908232619,-2177.18283632,8.591e-05,2]
[420282586,1775908232630,-2177.18283632,8.591e-05,2]
[420282587,1775908232646,-2177.18283632,8.591e-05,2]
[420282588,1775908232660,-2177.18283632,8.591e-05,2]
[420282589,1775908232669,-2177.18283632,8.591e-05,2]
[420282590,1775908232707,-2177.18283632,8.591e-05,2]
[420282591,1775908232716,-2177.18283632,8.591e-05,2]
[420282592,1775908232726,-2177.18283632,8.591e-05,2]
[420282593,1775908232751,-2177.18283632,8.591e-05,2]
[420282594,1775908232760,-2177.18283632,8.591e-05,2]
[420282595,1775908232770,-2177.18283632,8.591e-05,2]
[420282596,1775908232779,-2177.18283632,8.591e-05,2]
[420282597,1775908232799,-2177.18283632,8.591e-05,2]
[420282598,1775908232808,-2177.18283632,8.591e-05,2]
[420282599,1775908232818,-2177.18283632,8.591e-05,2]
[420282600,1775908232838,-2177.18283632,8.591e-05,2]
[420282601,1775908232847,-2177.18283632,8.591e-05,2]
[420282602,1775908232868,-2336.99759137,8.591e-05,2]
[420282603,1775908232878,-2336.99759137,8.591e-05,2]
[420282604,1775908232887,-2336.99759137,8.591e-05,2]
[420282605,1775908232897,-2336.99759137,8.591e-05,2]
[420282606,1775908232920,-2336.99759137,8.591e-05,2]
[420282607,1775908232929,-2336.99759137,8.591e-05,2]
[420282608,1775908232938,-2336.99759137,8.591e-05,2]
[420282609,1775908232956,-2336.99759137,8.591e-05,2]
[420282610,1775908232969,-2336.99759137,8.591e-05,2]
[420282611,1775908232978,-2336.99759137,8.591e-05,2]
[420282612,1775908232989,-2336.99759137,8.591e-05,2]
[420282613,1775908233003,-2336.99759137,8.591e-05,2]
[420282614,1775908233017,-2336.99759137,8.591e-05,2]
[420282615,1775908233027,-2336.99759137,8.591e-05,2]
[420282616,1775908233041,-2336.99759137,8.591e-05,2]
[420282617,1775908233058,-2336.99759137,8.591e-05,2]
[420282618,1775908233070,-2336.99759137,8.591e-05,2]
[420282619,1775908233083,-2336.99759137,8.591e-05,2]
[420282620,1775908233097,-2336.99759137,8.591e-05,2]
[420282621,1775908233106,-2336.99759137,8.591e-05,2]
[420282622,1775908233124,-2336.99759137,8.591e-05,2]
[420282623,1775908233140,-2336.99759137,8.591e-05,2]
[420282624,1775908233151,-2336.99759137,8.591e-05,2]
[420282625,1775908233165,-2336.99759137,8.591e-05,2]
[420282626,1775908233179,-2708.78676601,8.591e-05,2]
[420282627,1775908233191,-2708.78676601,8.591e-05,2]
[420282628,1775908233202,-2708.78676601,8.591e-05,2]
[420282629,1775908233213,-2708.78676601,8.591e-05,2]
[420282630,1775908233226,-2708.78676601,8.591e-05,2]
[420282631,1775908233240,-2708.78676601,8.591e-05,2]
[420282632,1775908233254,-2708.78676601,8.591e-05,2]
[420282633,1775908233266,-2708.78676601,8.591e-05,2]
[420282634,1775908233283,-2708.78676601,8.591e-05,2]
[420282635,1775908233296,-2708.78676601,8.591e-05,2]
[420282636,1775908233308,-234.20506238,8.591e-05,2]
[420282637,1775908233320,-500.0,8.592e-05,2]
[420282638,1775908233331,-380.85687345,8.592e-05,2]
[420282639,1775908233347,-500.0,8.592e-05,2]
[420282640,1775908233361,-167.89436671,8.592e-05,2]
[420282641,1775908233377,-500.0,8.592e-05,2]
[420282642,1775908233390,-500.0,8.592e-05,2]
[420282643,1775908233400,-500.0,8.592e-05,2]
[420282644,1775908233415,-448.71159369,8.592e-05,2]
[420282645,1775908233427,-150.0,8.592e-05,2]
[420282646,1775908233439,-209.59168403,8.592e-05,2]
[420282647,1775908233450,-161.2526449,8.592e-05,2]
[420282648,1775908233465,-210.15825627,8.592e-05,2]
[420282649,1775908233475,-500.0,8.592e-05,2]
[420282650,1775908233489,-42066.04101446,8.593e-05,2]
[420282673,1775908240261,-3268.26365647,8.593e-05,2]
[420282674,1775908240319,-527.67643239,8.593e-05,2]
[420282675,1775908240704,-491.42396994,8.593e-05,2]
[420282676,1775908241065,-2350.03789963,8.593e-05,2]
[420282684,1775908243146,-621.0,8.593e-05,2]
[420282693,1775908246334,-192417.34227798,8.593e-05,2]
[420282731,1775908288576,1266.2862015,8.421e-05,2]
[420282732,1775908288622,2266.5187985,8.421e-05,2]
[420282733,1775908288720,207.359,8.421e-05,2]
[420282734,1775908329362,156.0,8.421e-05,3]
[420282735,1775908387185,156.0,8.421e-05,3]
[420282736,1775908449300,156.0,8.421e-05,3]
[420282737,1775908567377,156.0,8.421e-05,3]
[420282738,1775908627673,156.0,8.421e-05,3]
[420282739,1775908685091,155.0,8.421e-05,3]
[420282741,1775908747603,155.0,8.421e-05,3]
[420282742,1775908750602,154.0,8.421e-05,3]
[420282743,1775908805390,309.32357697,7.592e-05,2]
[420282744,1775908807817,250.0,8.351e-05,2]
[420282745,1775908812415,158.0,8.421e-05,3]
[420282747,1775908867265,155.0,8.421e-05,3]
[420282749,1775908925213,174.36,7.755e-05,2]
[420282750,1775908925248,155.0,8.421e-05,3]
[420282751,1775908986546,155.0,8.421e-05,3]
[420282752,1775909048209,155.0,8.421e-05,3]
[420282754,1775909109773,155.0,8.421e-05,3]
[420282755,1775909166919,156.0,8.421e-05,3]
[420282756,1775909227676,155.0,8.421e-05,3]
[420282762,1775909349192,155.0,8.421e-05,3]
[420282763,1775909412014,155.0,8.421e-05,3]
[420282765,1775909431968,-150.0,8.592e-05,2]
[420282766,1775909432002,-250.0,8.592e-05,2]
[420282767,1775909432020,-212.55498381,8.592e-05,30]
[420282768,1775909432035,-152.0,8.594e-05,2]
[420282769,1775909432057,-152.0,8.594e-05,2]
[420282770,1775909432080,-2826.244,9.162e-05,2]
[420282771,1775909432107,-165.887,9.162e-05,2]
[420282772,1775909432126,-300.0,9.319e-05,2]
[420282773,1775909432143,-5000.0,9.32e-05,3]
[420282774,1775909432161,-500.0,9.323e-05,2]
[420282775,1775909432177,-2376.83740661,9.33e-05,2]
[420282776,1775909432204,-150.0,9.347e-05,2]
[420282777,1775909432227,-500.0,9.348e-05,2]
[420282778,1775909432248,-500.0,9.348e-05,2]
[420282780,1775909432274,-500.0,9.348e-05,2]
[420282782,1775909432292,-500.0,9.348e-05,2]
[420282784,1775909432318,-375.72068964,9.348e-05,2]
[420282786,1775909432335,-500.0,9.348e-05,2]
[420282788,1775909432359,-675.2380311,9.348e-05,2]
[420282791,1775909432375,-675.2380311,9.348e-05,2]
[420282794,1775909432395,-675.2380311,9.348e-05,2]
[420282796,1775909432411,-675.2380311,9.348e-05,2]
[420282798,1775909432426,-675.2380311,9.348e-05,2]
[420282801,1775909432439,-675.2380311,9.348e-05,2]
[420282803,1775909432452,-675.2380311,9.348e-05,2]
[420282805,1775909432465,-675.2380311,9.348e-05,2]
[420282807,1775909432484,-675.2380311,9.348e-05,2]
[420282809,1775909432497,-675.2380311,9.348e-05,2]
[420282812,1775909432518,-675.2380311,9.348e-05,2]
[420282814,1775909432531,-675.2380311,9.348e-05,2]
[420282816,1775909432544,-675.2380311,9.348e-05,2]
[420282818,1775909432561,-675.2380311,9.348e-05,2]
[420282820,1775909432578,-675.2380311,9.348e-05,2]
[420282822,1775909432591,-675.2380311,9.348e-05,2]
[420282825,1775909432617,-675.2380311,9.348e-05,2]
[420282827,1775909432636,-675.2380311,9.348e-05,2]
[420282829,1775909432662,-675.2380311,9.348e-05,2]
[420282831,1775909432688,-675.2380311,9.348e-05,2]
[420282833,1775909432705,-675.2380311,9.348e-05,2]
[420282835,1775909432738,-675.2380311,9.348e-05,2]
[420282837,1775909432758,-675.2380311,9.348e-05,2]
[420282838,1775909432790,-675.2380311,9.348e-05,2]
[420282839,1775909432815,-675.2380311,9.348e-05,2]
[420282840,1775909432834,-675.2380311,9.348e-05,2]
[420282841,1775909432848,-675.2380311,9.348e-05,2]
[420282842,1775909432867,-675.2380311,9.348e-05,2]
[420282843,1775909432887,-675.2380311,9.348e-05,2]
[420282844,1775909432912,-675.2380311,9.348e-05,2]
[420282845,1775909432929,-675.2380311,9.348e-05,2]
[420282846,1775909432959,-675.2380311,9.348e-05,2]
[420282847,1775909432976,-675.2380311,9.348e-05,2]
[420282848,1775909432993,-388.54203589,9.348e-05,2]
[420282849,1775909433009,-665.04575893,9.348e-05,2]
[420282850,1775909433026,-665.04575893,9.348e-05,2]
[420282851,1775909433045,-665.04575893,9.348e-05,2]
[420282852,1775909433060,-665.04575893,9.348e-05,2]
[420282853,1775909433072,-665.04575893,9.348e-05,2]
[420282854,1775909433088,-665.04575893,9.348e-05,2]
[420282855,1775909433100,-665.04575893,9.348e-05,2]
[420282856,1775909433113,-665.04575893,9.348e-05,2]
[420282857,1775909433131,-665.04575893,9.348e-05,2]
[420282858,1775909433143,-665.04575893,9.348e-05,2]
[420282859,1775909433156,-665.04575893,9.348e-05,2]
[420282860,1775909433169,-665.04575893,9.348e-05,2]
[420282861,1775909433182,-665.04575893,9.348e-05,2]
[420282862,1775909433194,-665.04575893,9.348e-05,2]
[420282863,1775909433212,-665.04575893,9.348e-05,2]
[420282864,1775909433225,-665.04575893,9.348e-05,2]
[420282865,1775909433236,-665.04575893,9.348e-05,2]
[420282866,1775909433259,-665.04575893,9.348e-05,2]
[420282867,1775909433271,-665.04575893,9.348e-05,2]
[420282868,1775909433283,-665.04575893,9.348e-05,2]
[420282869,1775909433301,-665.04575893,9.348e-05,2]
[420282870,1775909433314,-665.04575893,9.348e-05,2]
[420282871,1775909433327,-665.04575893,9.348e-05,2]
[420282872,1775909433348,-665.04575893,9.348e-05,2]
[420282873,1775909433361,-665.04575893,9.348e-05,2]
[420282874,1775909433375,-665.04575893,9.348e-05,2]
[420282875,1775909433393,-665.04575893,9.348e-05,2]
[420282876,1775909433405,-665.04575893,9.348e-05,2]
[420282877,1775909433420,-665.04575893,9.348e-05,2]
[420282878,1775909433433,-500.0,9.348e-05,2]
[420282879,1775909433444,-334.47666285,9.348e-05,2]
[420282880,1775909433459,-500.0,9.348e-05,2]
[420282881,1775909433470,-657.28689174,9.348e-05,2]
[420282882,1775909433482,-657.28689174,9.348e-05,2]
[420282883,1775909433494,-657.28689174,9.348e-05,2]
[420282884,1775909433510,-657.28689174,9.348e-05,2]
[420282885,1775909433522,-657.28689174,9.348e-05,2]
[420282886,1775909433535,-657.28689174,9.348e-05,2]
[420282887,1775909433546,-657.28689174,9.348e-05,2]
[420282888,1775909433561,-657.28689174,9.348e-05,2]
[420282889,1775909433572,-657.28689174,9.348e-05,2]
[420282890,1775909433584,-657.28689174,9.348e-05,2]
[420282891,1775909433600,-657.28689174,9.348e-05,2]
[420282892,1775909433612,-657.28689174,9.348e-05,2]
[420282893,1775909433623,-657.28689174,9.348e-05,2]
[420282894,1775909433635,-657.28689174,9.348e-05,2]
[420282895,1775909433648,-657.28689174,9.348e-05,2]
[420282896,1775909433660,-657.28689174,9.348e-05,2]
[420282897,1775909433672,-657.28689174,9.348e-05,2]
[420282898,1775909433684,-657.28689174,9.348e-05,2]
[420282899,1775909433696,-657.28689174,9.348e-05,2]
[420282900,1775909433711,-657.28689174,9.348e-05,2]
[420282901,1775909433724,-657.28689174,9.348e-05,2]
[420282902,1775909433738,-657.28689173,9.348e-05,2]
[420282903,1775909433751,-657.28689173,9.348e-05,2]
[420282904,1775909433767,-657.28689173,9.348e-05,2]
[420282905,1775909433783,-309.50906697,9.348e-05,2]
[420282906,1775909433799,-500.0,9.348e-05,2]
[420282907,1775909433819,-4108.09818662,9.349e-05,2]
[420282908,1775909433843,-31573.88249801,9.349e-05,2]
[420282909,1775909433868,-48679.3098697,9.349e-05,2]
[420282910,1775909433888,-52122.77354095,9.349e-05,2]
[420282919,1775909438239,-16988.65397947,9.349e-05,2]
[420283107,1775909441081,-463.17396815,9.349e-05,2]
[420283119,1775909446115,-155115.63288707,9.349e-05,2]
[420283120,1775909446171,-819703.78979488,9.349e-05,2]
[420283188,1775909480892,2196.9,8.562e-05,2]
[420283189,1775909585827,155.0,8.562e-05,3]
[420283190,1775909651448,156.0,8.562e-05,3]
[420283192,1775909707775,156.0,8.562e-05,3]
[420283193,1775909769836,156.0,8.562e-05,3]
[420283194,1775909887600,156.0,8.562e-05,3]
[420283195,1775909947984,156.0,8.562e-05,3]
[420283196,1775910012835,156.0,8.562e-05,3]
[420283580,1775910533270,272.0,8.562e-05,2]
[420283600,1775910593305,272.0,8.562e-05,2]
[420283613,1775910632464,-200.0,8.562e-05,2]
[420283614,1775910632483,-167.04,8.607e-05,2]
[420283615,1775910632514,-939.940303,8.849e-05,2]
[420283616,1775910632572,-260.059697,8.849e-05,2]
[420283617,1775910632613,-1200.0,8.85e-05,2]
[420283619,1775910632638,-300.0,8.85e-05,2]
[420283621,1775910632662,-31570.34,8.851e-05,2]
[420283622,1775910632706,-1600.0,9.031e-05,2]
[420283623,1775910632720,-2968.336,9.063e-05,2]
[420283624,1775910632742,-166.574,9.063e-05,2]
[420283625,1775910632753,-150.0,9.147e-05,2]
[420283626,1775910632766,-500.0,9.223e-05,2]
[420283627,1775910632789,-500.0,9.223e-05,2]
[420283628,1775910632798,-500.0,9.223e-05,2]
[420283629,1775910632816,-500.0,9.223e-05,2]
[420283630,1775910632837,-4775.0,9.233e-05,2]
[420283631,1775910632847,-693.0,9.237e-05,2]
[420283632,1775910632876,-500.0,9.247e-05,2]
[420283633,1775910632886,-513.00448275,9.247e-05,2]
[420283634,1775910632902,-500.0,9.247e-05,2]
[420283635,1775910632925,-500.0,9.247e-05,2]
[420283636,1775910632938,-500.0,9.247e-05,2]
[420283637,1775910632962,-500.0,9.247e-05,2]
[420283638,1775910632976,-500.0,9.247e-05,2]
[420283639,1775910632985,-500.0,9.247e-05,2]
[420283640,1775910633008,-500.0,9.247e-05,2]
[420283641,1775910633020,-500.0,9.247e-05,2]
[420283642,1775910633029,-500.0,9.247e-05,2]
[420283643,1775910633052,-620.14418353,9.247e-05,2]
[420283644,1775910633062,-500.0,9.247e-05,2]
[420283645,1775910633074,-500.0,9.247e-05,2]
[420283646,1775910633094,-500.0,9.247e-05,2]
[420283647,1775910633103,-500.0,9.247e-05,2]
[420283648,1775910633113,-500.0,9.247e-05,2]
[420283649,1775910633126,-500.0,9.247e-05,2]
[420283650,1775910633141,-500.0,9.247e-05,2]
[420283651,1775910633150,-500.0,9.247e-05,2]
[420283652,1775910633162,-500.0,9.247e-05,2]
[420283653,1775910633180,-500.0,9.247e-05,2]
[420283654,1775910633191,-500.0,9.247e-05,2]
[420283655,1775910633204,-271.97942512,9.247e-05,2]
[420283656,1775910633215,-500.0,9.247e-05,2]
[420283657,1775910633225,-434.13366399,9.247e-05,2]
[420283658,1775910633239,-216.65634688,9.247e-05,2]
[420283659,1775910633251,-300.0,9.247e-05,2]
[420283660,1775910633261,-394.36393446,9.247e-05,2]
[420283661,1775910633271,-1209929.9491,9.248e-05,2]
[420283662,1775910633288,-38608.4258,9.248e-05,2]
[420283663,1775910633298,-9999.99,9.249e-05,2]
[420283664,1775910633307,-33044.9118,9.249e-05,2]
[420283665,1775910633321,-500.0,9.256e-05,2]
[420283666,1775910633336,-357.03,9.256e-05,2]
[420283667,1775910633345,-697513.047,9.256e-05,2]
[420283668,1775910633355,-9999.99,9.256e-05,2]
[420283669,1775910633368,-999.99,9.256e-05,2]
[420283670,1775910633384,-1550.82,9.256e-05,2]
[420283671,1775910633394,-9999.99,9.256e-05,2]
[420283672,1775910633410,-431.86,9.256e-05,2]
[420283673,1775910633424,-9999.99,9.256e-05,2]
[420283674,1775910633434,-150.99,9.256e-05,2]
[420283675,1775910633443,-150.99,9.256e-05,2]
[420283676,1775910633461,-299.99,9.256e-05,2]
[420283677,1775910633470,-28029.21,9.256e-05,2]
[420283678,1775910633487,-9999.99,9.256e-05,2]
[420283679,1775910633499,-150.0,9.305e-05,2]
[420283680,1775910633509,-216.738866,9.305e-05,2]
[420283681,1775910633519,-152.0,9.345e-05,2]
[420283682,1775910633536,-152.0,9.345e-05,2]
[420283683,1775910633549,-152.0,9.345e-05,2]
[420283684,1775910633559,-152.0,9.348e-05,2]
[420283685,1775910633575,-152.0,9.348e-05,2]
[420283686,1775910633587,-152.0,9.348e-05,2]
[420283687,1775910633599,-152.0,9.348e-05,2]
[420283688,1775910633615,-152.0,9.348e-05,2]
[420283689,1775910633626,-152.0,9.348e-05,2]
[420283690,1775910633639,-152.0,9.348e-05,2]
[420283691,1775910633652,-500.0,9.348e-05,2]
[420283692,1775910633665,-2552.378033,9.349e-05,2]
[420283693,1775910633678,-27457.6720821,9.349e-05,2]
[420283694,1775910633688,-52921.32327583,9.349e-05,2]
[420283695,1775910633711,-3579.0381034,9.349e-05,2]
[420283696,1775910633733,-693.0289217,9.349e-05,2]
[420283697,1775910633749,-502.21578455,9.349e-05,2]
[420283698,1775910633761,-35424.84451692,9.349e-05,2]
[420283699,1775910633774,-10390.406146,9.349e-05,2]
[420283700,1775910633783,-184099.26545611,9.349e-05,2]
[420283701,1775910633799,-1184.19781571,9.349e-05,2]
[420283704,1775910638485,-308526.64895138,9.349e-05,2]
[420283705,1775910638501,-4092.471097,9.349e-05,2]
[420283706,1775910638519,-152.0,9.351e-05,2]
[420283707,1775910638530,-152.0,9.351e-05,2]
[420283708,1775910638545,-152.0,9.351e-05,2]
[420283709,1775910638562,-152.0,9.351e-05,2]
[420283710,1775910638574,-152.0,9.351e-05,2]
[420283711,1775910638583,-1852.42,9.41e-05,2]
[420283712,1775910638598,-250.0,9.418e-05,2]
[420283713,1775910638613,-1500.0,9.444e-05,2]
[420283714,1775910638623,-250.0,9.468e-05,2]
[420283715,1775910638635,-500.0,9.53e-05,2]
[420283716,1775910638650,-424.37268135,9.63e-05,2]
[420283717,1775910638664,-1000.0,9.684e-05,2]
[420283718,1775910638679,-1680.0,9.734e-05,2]
[420283719,1775910638690,-420.0,9.735e-05,2]
[420283720,1775910638703,-5000.0,9.735e-05,2]
[420283721,1775910638718,-250.0,9.735e-05,2]
[420283722,1775910638728,-1000.0,9.771e-05,2]
[420283723,1775910638739,-161.19100432,9.771e-05,2]
[420283724,1775910638755,-1000.0,9.771e-05,2]
[420283725,1775910638764,-826.84050534,9.771e-05,2]
[420283726,1775910638773,-500.0,9.804e-05,2]
[420283727,1775910638800,-110183.9294232,9.981e-05,2]
[420283728,1775910638812,-202.85035275,9.994e-05,2]
[420283729,1775910638821,-2318.4129873,9.994e-05,2]
[420283730,1775910638831,-151.0,0.0001,2]
[420283731,1775910638846,-941.4945855,0.0001,2]
[420283732,1775910638856,-151.0,0.0001,2]
[420283733,1775910638865,-151.0,0.0001,2]
[420283734,1775910638875,-151.0,0.0001,2]
[420283735,1775910638891,-151.0,0.0001,2]
[420283736,1775910638900,-151.0,0.0001,2]
[420283737,1775910638910,-151.0,0.0001,2]
[420283738,1775910638920,-151.0,0.0001,2]
[420283739,1775910638935,-151.0,0.0001,2]
[420283741,1775910638945,-151.0,0.0001,2]
[420283742,1775910638956,-200.0,0.0001,2]
[420283744,1775910638966,-151.0,0.0001,2]
[420283746,1775910638981,-500.0,0.0001,2]
[420283748,1775910638991,-151.0,0.0001,2]
[420283750,1775910639003,-500.0,0.0001,2]
[420283752,1775910639013,-151.0,0.0001,2]
[420283754,1775910639023,-500.0,0.0001,2]
[420283756,1775910639033,-151.0,0.0001,2]
[420283758,1775910639045,-243.79747382,0.0001,2]
[420283760,1775910639055,-1199.20597015,0.0001,2]
[420283762,1775910639064,-151.0,0.0001,2]
[420283764,1775910639075,-151.0,0.0001,2]
[420283766,1775910639091,-636.32242995,0.0001,2]
[420283768,1775910639100,-255.0,0.00010062,2]
[420283770,1775910639110,-150.0,0.00010068,2]
[420283771,1775910639121,-475.3894655,0.00010078,2]
[420283772,1775910639139,-24585.357818,0.00010122,2]
[420283774,1775910639149,-250.0,0.00010131,2]
[420283776,1775910639160,-517.3078611,0.00010138,2]
[420283778,1775910639177,-1600.0,0.0001016,2]
[420283780,1775910639186,-913.1537312,0.00010303,2]
[420283782,1775910639197,-1500.0,0.00010318,2]
[420283784,1775910639214,-503.71619359,0.00010318,2]
[420283786,1775910639225,-166.69,0.00010377,2]
[420283788,1775910639234,-500.0,0.00010455,2]
[420283790,1775910639244,-27457.6720821,0.00010515,2]
[420283792,1775910639256,-203.7521383,0.00010516,2]
[420283794,1775910639266,-651.22170031,0.00010548,2]
[420283796,1775910639275,-2552.378033,0.00010596,2]
[420283798,1775910639285,-150.0,0.000106,2]
[420283800,1775910639300,-108487.68,0.00010664,2]
[420283802,1775910639310,-157.1738,0.000107,2]
[420283804,1775910639320,-2351.0,0.00010707,2]
[420283806,1775910639331,-587.0,0.00010708,2]
[420283808,1775910639344,-164.2778,0.0001074,2]
[420283810,1775910639355,-15849.45,0.00010785,2]
[420283812,1775910639364,-20777.981056,0.00010791,2]
[420283838,1775910639903,-483.75,0.00010842,2]
[420283839,1775910639975,-9236.96688744,0.000109,2]
[420283840,1775910640010,-879.82,0.00010959,2]
[420283841,1775910640041,-150.0,0.00010959,2]
[420283842,1775910640061,-331.0,0.00011068,2]
[420283843,1775910640072,-15817.75494113,0.00011099,2]
[420283844,1775910640087,-15817.75494107,0.00011099,2]
[420283845,1775910640105,-4636.1942405,0.00011113,2]
[420283846,1775910640117,-1600.0,0.00011289,2]
[420283847,1775910640133,-2014.85,0.00011507,2]
[420283848,1775910640153,-150.0,0.00011512,2]
[420283849,1775910640162,-1264.0,0.00011512,2]
[420283850,1775910640187,-1218.0,0.00011512,2]
[420283851,1775910640197,-926.0,0.00011512,2]
[420283852,1775910640206,-622.0,0.00011512,2]
[420283853,1775910640233,-1047.0,0.00011512,2]
[420283854,1775910640247,-15817.75494107,0.00011537,2]
[420283855,1775910640272,-152.0,0.00011611,7]
[420283856,1775910640292,-152.0,0.00011618,7]
[420283857,1775910640314,-152.0,0.00011618,7]
[420283858,1775910640345,-27457.6720821,0.00011682,2]
[420283859,1775910640376,-9236.96688737,0.00011755,2]
[420283860,1775910640397,-3292.0,0.00011778,2]
[420283861,1775910640426,-823.0,0.00011779,2]
[420283862,1775910640445,-2552.378033,0.00011842,2]
[420283863,1775910640469,-173.4873,0.000119,2]
[420283864,1775910640489,-150.0,0.00011937,2]
[420283865,1775910640512,-2163.0,0.00012,2]
[420283867,1775910640528,-1600.0,0.00012418,2]
[420283869,1775910640546,-15817.75494107,0.00012732,2]
[420283870,1775910640558,-27457.6720821,0.00012848,2]
[420283871,1775910640575,-167.04,0.00012911,2]
[420283872,1775910640589,-1152.0,0.00012957,2]
[420283873,1775910640600,-250.0,0.00013,2]
[420283875,1775910640616,-2552.378033,0.00013089,2]
[420283877,1775910640625,-506.0,0.000131,2]
[420283879,1775910640634,-879.82,0.00013122,2]
[420283881,1775910640646,-200.6525,0.000132,2]
[420283882,1775910640661,-3240.0,0.00013425,2]
[420283883,1775910640670,-160.0,0.00013425,2]
[420283884,1775910640679,-874.938698,0.00013425,2]
[420283885,1775910640688,-1589.877396,0.00013425,2]
[420283886,1775910640703,-160.0,0.00013425,2]
[420283887,1775910640712,-373.817035,0.00013425,2]
[420283888,1775910640721,-587.634071,0.00013425,2]
[420283889,1775910640730,-160.0,0.00013457,2]
[420283890,1775910640740,-489.421675,0.00013457,2]
[420283891,1775910640753,-818.84335,0.00013457,2]
[420283892,1775910640762,-1600.0,0.00013546,2]
[420283893,1775910640771,-151.0,0.00013668,2]
[420283894,1775910640780,-151.0,0.00013668,2]
[420283895,1775910640790,-151.0,0.00013668,2]
[420283896,1775910640799,-151.0,0.00013668,2]
[420283897,1775910640808,-151.0,0.00013668,2]
[420283898,1775910640817,-151.0,0.00013668,2]
[420283899,1775910640827,-518.75523557,0.00013698,2]
[420283900,1775910640836,-500.0,0.00013698,2]
[420283901,1775910640845,-500.0,0.00013698,2]
[420283902,1775910640854,-500.0,0.00013698,2]
[420283903,1775910640863,-500.0,0.00013698,2]
[420283904,1775910640873,-500.0,0.00013698,2]
[420283905,1775910640882,-500.0,0.00013698,2]
[420283906,1775910640891,-500.0,0.00013698,2]
[420283907,1775910640900,-500.0,0.00013698,2]
[420283908,1775910640910,-500.0,0.00013698,2]
[420283909,1775910640919,-500.0,0.00013698,2]
[420283910,1775910640929,-500.0,0.00013698,2]
[420283911,1775910640938,-500.0,0.00013698,2]
[420283912,1775910640947,-500.0,0.00013698,2]
[420283913,1775910640958,-500.0,0.00013698,2]
[420283914,1775910640968,-500.0,0.00013698,2]
[420283915,1775910640978,-504.04476775,0.00013698,2]
[420283916,1775910640987,-502.11524689,0.00013698,2]
[420283917,1775910640998,-500.0,0.00013698,2]
[420283918,1775910641010,-500.0,0.00013698,2]
[420283919,1775910641019,-500.0,0.00013698,2]
[420283920,1775910641028,-500.0,0.00013698,2]
[420283921,1775910641037,-385.11402178,0.00013698,2]